fUST/lending_fUST_20251021
["ID","MTS","AMOUNT","RATE_DAILY","PERIOD"]
[391974310,1761046347754,196.0,0.00017973,2]
[391974311,1761046347945,196.0,0.00017994,2]
[391974312,1761046348139,196.0,0.00018015,2]
[391974313,1761046348361,196.0,0.00018036,2]
[391974314,1761046348571,196.0,0.00018058,2]
[391974315,1761046348778,196.0,0.00018079,2]
[391974316,1761046348981,4876.09000006,0.000181,2]
[391974317,1761046349004,877.15640189,0.000181,2]
[391974318,1761046354717,500.0,0.00023999,2]
[391974319,1761046354855,171.54365532,0.00023999,2]
[391974321,1761046447893,196.0,0.00016,2]
[391974322,1761046448107,196.0,0.00016175,2]
[391974323,1761046448312,196.0,0.0001635,2]
[391974324,1761046448525,196.0,0.00016525,2]
[391974325,1761046448755,196.0,0.000167,2]
[391974326,1761046449094,196.0,0.00016875,2]
[391974327,1761046449187,196.0,0.0001705,2]
[391974328,1761046449384,196.0,0.00017225,2]
[391974329,1761046449602,196.0,0.000174,2]
[391974330,1761046449802,196.0,0.00017575,2]
[391974331,1761046449829,5000.0,0.00024,2]
[391974332,1761046449992,196.0,0.0001775,2]
[391974333,1761046450219,196.0,0.00017925,2]
[391974334,1761046450414,286.20912708,0.000181,2]
[391974335,1761046458139,813.10081571,0.00024,2]
[391974336,1761046458162,4186.89918429,0.00024,2]
[391974337,1761046466857,5000.0,0.00024,2]
[391974338,1761046483609,813.11081571,0.00024,2]
[391974339,1761046483631,4186.88918429,0.00024,2]
[391974340,1761046491713,5000.0,0.00024,2]
[391974341,1761046506766,813.12081571,0.00024,2]
[391974342,1761046506788,4186.87918429,0.00024,2]
[391974343,1761046514991,5000.0,0.00024072,2]
[391974344,1761046530261,356.92828604,0.00024072,2]
[391974345,1761046569451,160.0,8.3e-07,2]
[391974346,1761046570553,160.0,8.3e-07,2]
[391974347,1761046571682,160.0,8.3e-07,2]
[391974348,1761046572805,160.0,8.3e-07,2]
[391974349,1761046573841,160.0,8.3e-07,2]
[391974350,1761046574898,160.0,8.3e-07,2]
[391974351,1761046578347,160.0,8.3e-07,2]
[391974352,1761046674353,568.36,0.00020084,2]
[391974353,1761046674760,1136.73,0.0002191,2]
[391974354,1761046675220,1705.09,0.00023736,2]
[391974355,1761046679721,217.72,0.00015684,120]
[391974356,1761046680015,217.72,0.00015684,120]
[391974357,1761046680331,217.72,0.00015684,120]
[391974363,1761046706663,112.90171396,0.00023617,10]
[391974364,1761046706685,155.15219136,0.00023617,10]
[391974368,1761046752772,524.96,0.00020095,2]
[391974369,1761046753217,1049.92,0.00021921,2]
[391974370,1761046753637,1574.88,0.00023748,2]
[391974372,1761046833687,529.57,0.00020224,2]
[391974373,1761046834286,1059.15,0.00022063,2]
[391974374,1761046834757,1588.72,0.00023901,2]
[391974375,1761046885181,1000.0,0.00023999,2]
[391974376,1761046885368,1000.0,0.00023999,2]
[391974377,1761046885599,1000.0,0.00023999,2]
[391974378,1761046885829,1000.0,0.00023999,2]
[391974379,1761046886055,1000.0,0.00023999,2]
[391974380,1761046886277,895.5273638,0.00023999,2]
[391974381,1761046900690,417.15472785,0.00024072,2]
[391974382,1761046914247,564.79,0.00020039,2]
[391974383,1761046914717,1129.58,0.00021861,2]
[391974384,1761046915117,1694.38,0.00023683,2]
[391974385,1761046958621,298.57790835,0.00024072,2]
[391974386,1761046958647,2468.83026046,0.00024072,2]
[391974388,1761046974149,3224.90843084,0.00024072,2]
[391974392,1761047076704,4306.2713087,0.00024072,2]
[391974393,1761047076730,693.7286913,0.00024072,2]
[391974400,1761047159542,239.9572388,0.00023831,2]
[391974401,1761047167270,912.0,0.00024072,2]
[391974402,1761047236223,241.51,0.00022322,30]
[391974403,1761047272892,5080.89,0.00024072,2]
[391974404,1761047299668,3525.6527612,0.00024072,2]
[391974405,1761047299690,1474.3472388,0.00024072,2]
[391974406,1761047307723,3789.7054461,0.00024072,2]
[391974412,1761047324770,4735.9573151,0.00024072,2]
[391974413,1761047324796,264.0426849,0.00024072,2]
[391974417,1761047333632,1210.2945539,0.00024072,2]
[391974419,1761047349513,5000.0,0.00024072,2]
[391974426,1761047358244,3525.6727612,0.00024072,2]
[391974427,1761047358269,1474.3272388,0.00024072,2]
[391974431,1761047374555,5000.0,0.00024072,2]
[391974433,1761047382649,3525.6827612,0.00024072,2]
[391974434,1761047382672,1474.3172388,0.00024072,2]
[391974439,1761047398953,5000.0,0.00024072,2]
[391974440,1761047403414,301.67,0.00022337,30]
[391974441,1761047407614,3224.0227612,0.00024072,2]
[391974442,1761047407636,1775.9772388,0.00024072,2]
[391974449,1761047423356,5000.0,0.00024072,2]
[391974451,1761047429964,3224.0327612,0.00022873,2]
[391974452,1761047429985,500.00832074,0.00022873,2]
[391974476,1761047431686,-150.0,0.00024247,2]
[391974477,1761047431696,-395.05488852,0.00024247,2]
[391974478,1761047431706,-5059.5132742,0.00024347,2]
[391974479,1761047431715,-603.34,0.00024368,30]
[391974480,1761047431724,-1200.0,0.00024697,2]
[391974481,1761047431734,-300.0,0.00024698,2]
[391974482,1761047431743,-300.0,0.00024698,2]
[391974483,1761047431753,-300.0,0.00024698,2]
[391974484,1761047431762,-300.0,0.00024698,2]
[391974485,1761047431771,-210.0,0.00024699,2]
[391974486,1761047431780,-172.5,0.00024847,2]
[391974487,1761047431792,-195.0,0.00025447,2]
[391974488,1761047431801,-300.0,0.0002581,20]
[391974489,1761047431810,-300.0,0.0002581,20]
[391974490,1761047431820,-300.0,0.0002581,20]
[391974492,1761047431829,-300.0,0.0002581,20]
[391974494,1761047431838,-300.0,0.0002581,20]
[391974496,1761047431847,-300.0,0.0002581,20]
[391974498,1761047431859,-300.0,0.0002581,20]
[391974500,1761047431867,-300.0,0.0002581,20]
[391974502,1761047431876,-300.0,0.0002581,20]
[391974504,1761047431885,-300.0,0.0002581,20]
[391974506,1761047431894,-300.0,0.0002581,20]
[391974508,1761047431903,-300.0,0.0002581,20]
[391974510,1761047431912,-300.0,0.0002581,20]
[391974512,1761047431922,-300.0,0.0002581,20]
[391974513,1761047431930,-4918.68223577,0.0002581,2]
[391974514,1761047431942,-45081.31776423,0.0002581,2]
[391974515,1761047431951,-500.0,0.00025873,2]
[391974516,1761047431960,-504.33491948,0.00025873,2]
[391974517,1761047431969,-500.0,0.00025873,2]
[391974518,1761047431978,-217.5,0.00026047,2]
[391974519,1761047431987,-750.60668751,0.00026053,2]
[391974520,1761047431997,-905.01,0.00026398,30]
[391974521,1761047432006,-506.74257343,0.00026421,2]
[391974522,1761047432016,-160.0,0.00026717,2]
[391974523,1761047432026,-420.0,0.00026764,2]
[391974524,1761047432036,-160.0,0.00026867,2]
[391974525,1761047432045,-403.05172659,0.00026867,2]
[391974526,1761047432055,-160.0,0.00026867,2]
[391974527,1761047432064,-160.0,0.00026867,2]
[391974528,1761047432073,-1164.0,0.00026885,2]
[391974529,1761047432082,-5000.0,0.00027206,2]
[391974530,1761047432091,-1751.1631357,0.00027232,2]
[391974531,1761047432101,-260.0,0.00027265,2]
[391974532,1761047432110,-1000.0,0.00027397,2]
[391974533,1761047432120,-1000.0,0.00027397,2]
[391974534,1761047432130,-1000.0,0.00027397,2]
[391974535,1761047432139,-411.43652046,0.00027397,2]
[391974536,1761047432152,-500.0,0.00027397,2]
[391974537,1761047432161,-500.0,0.00027397,2]
[391974538,1761047432171,-187.75,0.00027397,2]
[391974539,1761047432181,-211.818051,0.00027397,2]
[391974540,1761047432190,-767.0,0.00027442,4]
[391974541,1761047432199,-400.593,0.00027479,16]
[391974542,1761047432209,-360.0,0.00027813,2]
[391974543,1761047432218,-750.60668751,0.00028237,2]
[391974544,1761047432227,-767.0,0.00028347,4]
[391974545,1761047432236,-460.0,0.00028361,2]
[391974546,1761047432246,-1206.68,0.00028429,30]
[391974547,1761047432255,-260.0,0.00028575,14]
[391974548,1761047432265,-250.0,0.00028767,2]
[391974549,1761047432274,-359.33523072,0.0002881,2]
[391974550,1761047432283,-560.0,0.00028908,2]
[391974551,1761047432293,-587.0,0.00029004,2]
[391974552,1761047432303,-514.84070869,0.00029054,2]
[391974553,1761047432312,-182.98585614,0.00029161,2]
[391974554,1761047432322,-767.0,0.00029253,5]
[391974555,1761047432331,-660.0,0.00029456,2]
[391974556,1761047432341,-533.88981491,0.00029602,2]
[391974557,1761047432350,-196.91051054,0.00029666,2]
[391974558,1761047432360,-1375.31,0.00029709,10]
[391974559,1761047432369,-1146.09,0.00029719,10]
[391974560,1761047432379,-5764.1529696,0.00029719,2]
[391974561,1761047432388,-721.21,0.00029729,10]
[391974562,1761047432397,-500.0,0.00029739,2]
[391974563,1761047432406,-500.0,0.00029739,2]
[391974564,1761047432416,-500.0,0.00029739,2]
[391974565,1761047432425,-500.0,0.00029739,2]
[391974566,1761047432435,-500.0,0.00029739,2]
[391974567,1761047432445,-500.0,0.00029739,2]
[391974568,1761047432454,-500.0,0.00029739,2]
[391974569,1761047432463,-500.0,0.00029739,2]
[391974570,1761047432473,-500.0,0.00029739,2]
[391974571,1761047432482,-500.0,0.00029739,2]
[391974572,1761047432492,-500.0,0.00029739,2]
[391974573,1761047432501,-500.0,0.00029739,2]
[391974574,1761047432510,-500.0,0.00029739,2]
[391974575,1761047432519,-500.0,0.00029739,2]
[391974576,1761047432528,-500.0,0.00029739,2]
[391974577,1761047432538,-165.53197715,0.00029739,2]
[391974578,1761047432547,-500.0,0.00029739,2]
[391974579,1761047432556,-500.0,0.00029739,2]
[391974580,1761047432566,-500.0,0.00029739,2]
[391974581,1761047432575,-500.0,0.00029739,2]
[391974582,1761047432584,-500.0,0.00029739,2]
[391974583,1761047432594,-513.60671979,0.00029739,2]
[391974584,1761047432603,-300.0,0.00029741,30]
[391974585,1761047432613,-300.0,0.00029741,30]
[391974586,1761047432623,-300.0,0.00029741,30]
[391974587,1761047432632,-509.84649574,0.00029811,7]
[391974588,1761047432642,-543.48192521,0.00029973,2]
[391974589,1761047432652,-291.89312797,0.00029973,5]
[391974590,1761047432662,-158.43313369,0.00029973,2]
[391974591,1761047432671,-500.0,0.00029973,5]
[391974592,1761047432683,-255.82,0.0002999,3]
[391974593,1761047432692,-767.46,0.0002999,3]
[391974594,1761047432701,-11528.3059392,0.0002999,2]
[391974595,1761047432711,-155.401,0.00029999,2]
[391974596,1761047432720,-30000.0,0.0003,4]
[391974597,1761047432729,-25272.59882036,0.0003,4]
[391974627,1761047437544,-500.0,0.00026545,2]
[391974629,1761047437553,-511.0,0.00026545,2]
[391974631,1761047437563,-500.0,0.00026545,2]
[391974633,1761047437572,-525.00000003,0.00026545,2]
[391974635,1761047437581,-500.0,0.00026545,2]
[391974636,1761047437590,-500.0,0.00026545,2]
[391974637,1761047437599,-500.0,0.00026545,2]
[391974638,1761047437608,-221.37347826,0.00026545,2]
[391974639,1761047437617,-500.0,0.00026545,2]
[391974640,1761047437625,-254.41046662,0.00028767,3]
[391974641,1761047437634,-1087.28,0.00029,2]
[391974642,1761047437643,-1087.28,0.00029174,2]
[391974643,1761047437652,-955.07,0.00029729,10]
[391974644,1761047437661,-4727.40117964,0.0003,4]
[391974645,1761047437669,-35944.41915258,0.0003,4]
[391974646,1761047437679,-1893.09,0.0003,7]
[391974647,1761047437688,-365.78528971,0.00030002,2]
[391974648,1761047437697,-760.0,0.00030004,2]
[391974649,1761047437706,-329.04516651,0.00030076,2]
[391974650,1761047437715,-7908.0,0.00030137,2]
[391974651,1761047437723,-500.0,0.00030137,2]
[391974652,1761047437732,-500.0,0.00030137,2]
[391974653,1761047437741,-500.0,0.00030137,2]
[391974655,1761047437750,-648.4357403,0.00030137,2]
[391974656,1761047437759,-211.818051,0.00030143,2]
[391974658,1761047437769,-152.919121,0.00030143,2]
[391974660,1761047437778,-601.26064471,0.0003015,2]
[391974662,1761047437787,-767.0,0.00030158,5]
[391974664,1761047437796,-522.50149852,0.00030173,5]
[391974666,1761047437804,-500.0,0.00030173,5]
[391974668,1761047437813,-250.85868638,0.00030173,5]
[391974670,1761047437822,-557.68381008,0.00030173,2]
[391974672,1761047437831,-9493.85,0.000302,7]
[391974674,1761047437840,-750.60668751,0.00030422,2]
[391974676,1761047437849,-1508.36,0.0003046,30]
[391974678,1761047437862,-5764.1529696,0.00030511,2]
[391974680,1761047437871,-1000.0,0.00030521,5]
[391974682,1761047437879,-860.0,0.00030552,2]
[391974684,1761047437888,-503.82281992,0.00030711,7]
[391974686,1761047437897,-500.0,0.00030721,5]
[391974688,1761047437906,-1698.0,0.00030744,2]
[391974690,1761047437915,-1524.07,0.000309,120]
[391974692,1761047437923,-557.67061101,0.00031,120]
[391974694,1761047437932,-212.39836721,0.00031,120]
[391974696,1761047437941,-207.46740397,0.00031,120]
[391974698,1761047437951,-178.70547302,0.00031,120]
[391974700,1761047437960,-865.05636198,0.00031,120]
[391974702,1761047437969,-1332.35629212,0.00031,120]
[391974704,1761047437978,-169.93573637,0.00031,120]
[391974706,1761047437987,-189.82131816,0.00031,120]
[391974708,1761047437996,-193.4696971,0.00031,120]
[391974710,1761047438006,-192.76534298,0.00031,120]
[391974712,1761047438015,-988.78374726,0.00031,120]
[391974714,1761047438023,-171.76318768,0.00031,120]
[391974716,1761047438032,-767.0,0.00031063,6]
[391974718,1761047438042,-155.96,0.00031099,15]
[391974720,1761047438051,-960.0,0.000311,2]
[391974722,1761047438060,-1698.0,0.00031182,2]
[391974724,1761047438070,-155.96,0.00031199,15]
[391974726,1761047438079,-155.96,0.00031299,15]
[391974729,1761047438089,-511.64,0.0003136,3]
[391974730,1761047438098,-155.96,0.00031399,15]
[391974732,1761047438108,-823.0,0.00031431,2]
[391974734,1761047438118,-168.0,0.0003146,2]
[391974735,1761047438129,-150.0,0.00031478,5]
[391974737,1761047438138,-500.0,0.00031497,7]
[391974738,1761047438147,-155.96,0.00031499,15]
[391974739,1761047438157,-5000.0,0.0003154,3]
[391974740,1761047438166,-211.818051,0.00031588,3]
[391974741,1761047438176,-1698.0,0.00031594,2]
[391974742,1761047438185,-155.96,0.00031599,15]
[391974743,1761047438195,-1060.0,0.00031648,2]
[391974744,1761047438206,-1909.0,0.00031694,2]
[391974746,1761047438216,-155.96,0.00031699,15]
[391974748,1761047438225,-1893.09,0.000317,7]
[391974750,1761047438235,-168.0,0.00031718,2]
[391974752,1761047438244,-500.0,0.00031728,120]
[391974754,1761047438254,-155.96,0.00031799,15]
[391974756,1761047438263,-155.96,0.00031899,15]
[391974758,1761047438272,-557.67061101,0.000319,120]
[391974760,1761047438282,-1332.35629212,0.000319,120]
[391974762,1761047438293,-865.05636198,0.000319,120]
[391974764,1761047438303,-169.93573637,0.000319,120]
[391974765,1761047438313,-193.4696971,0.000319,120]
[391974766,1761047438322,-192.76534298,0.000319,120]
[391974767,1761047438332,-988.78374726,0.000319,120]
[391974768,1761047438342,-171.76318768,0.000319,120]
[391974769,1761047438351,-1698.0,0.00031904,2]
[391974770,1761047438361,-168.0,0.00031919,2]
[391974771,1761047438371,-767.0,0.00031968,7]
[391974772,1761047438381,-155.96,0.00031999,15]
[391974773,1761047438391,-250.0,0.00032026,5]
[391974774,1761047438401,-250.0,0.00032038,2]
[391974775,1761047438411,-155.97290778,0.00032099,15]
[391974776,1761047438420,-168.0,0.0003211,2]
[391974777,1761047438551,-168.0,0.00032116,7]
[391974778,1761047438562,-1160.0,0.00032196,2]
[391974779,1761047438571,-168.0,0.00032286,7]
[391974780,1761047438582,-168.0,0.00032361,2]
[391974781,1761047438591,-168.0,0.0003238,2]
[391974782,1761047438600,-168.0,0.00032389,2]
[391974783,1761047438610,-1635.565819,0.000324,12]
[391974784,1761047438619,-1810.03,0.0003249,30]
[391974785,1761047438629,-168.0,0.00032495,2]
[391974786,1761047438638,-211.818051,0.000325,10]
[391974787,1761047438648,-168.0,0.00032502,2]
[391974788,1761047438657,-1888.03633606,0.00032506,2]
[391974789,1761047438668,-168.0,0.00032562,2]
[391974790,1761047438677,-200.86883239,0.00032574,5]
[391974791,1761047438687,-5764.1529696,0.0003259,2]
[391974792,1761047438696,-9493.85,0.000326,7]
[391974793,1761047438705,-750.60668751,0.00032606,2]
[391974794,1761047438715,-9604.08516835,0.00032621,2]
[391974795,1761047438725,-354.08448005,0.00032671,2]
[391974796,1761047438735,-1260.0,0.00032744,2]
[391974797,1761047438745,-168.0,0.00032836,2]
[391974798,1761047438754,-767.0,0.00032874,7]
[391974799,1761047438763,-2999.0,0.00032876,120]
[391974800,1761047438773,-211.818051,0.00032888,2]
[391974801,1761047438783,-152.919121,0.00032888,2]
[391974802,1761047438793,-557.67061101,0.000329,120]
[391974803,1761047438803,-1332.35629212,0.000329,120]
[391974804,1761047438812,-865.05636198,0.000329,120]
[391974805,1761047438822,-403.05172659,0.000329,120]
[391974806,1761047438832,-193.4696971,0.000329,120]
[391974807,1761047438842,-192.76534298,0.000329,120]
[391974808,1761047438851,-988.78374726,0.000329,120]
[391974809,1761047438863,-160.0,0.000329,120]
[391974810,1761047438872,-1000.0,0.000329,12]
[391974811,1761047438882,-155.0,0.00032999,2]
[391974812,1761047438893,-154.82380794,0.00033,3]
[391974813,1761047438905,-168.0,0.00033015,2]
[391974814,1761047438916,-632.0,0.00033045,2]
[391974815,1761047438927,-983.0,0.00033045,2]
[391974816,1761047438940,-2164.0,0.00033045,2]
[391974817,1761047438951,-251.32,0.00033045,2]
[391974818,1761047438961,-211.818051,0.00033063,3]
[391974819,1761047438971,-152.919121,0.00033063,3]
[391974820,1761047438980,-151.0,0.00033079,2]
[391974821,1761047438990,-267.76271467,0.00033079,2]
[391974822,1761047438999,-151.0,0.00033079,2]
[391974823,1761047439009,-151.0,0.00033079,2]
[391974824,1761047439019,-151.0,0.00033079,2]
[391974825,1761047439028,-151.0,0.00033079,2]
[391974826,1761047439038,-151.0,0.00033079,2]
[391974827,1761047439050,-500.0,0.00033079,2]
[391974828,1761047439060,-168.0,0.00033122,2]
[391974829,1761047439070,-151.0,0.00033134,2]
[391974830,1761047439080,-500.0,0.00033134,2]
[391974831,1761047439089,-198.0,0.00033189,2]
[391974832,1761047439099,-500.0,0.00033189,2]
[391974833,1761047439109,-1909.0,0.00033239,7]
[391974834,1761047439118,-500.0,0.00033243,2]
[391974835,1761047439129,-1360.0,0.00033292,2]
[391974836,1761047439139,-500.0,0.00033298,2]
[391974837,1761047439148,-1893.09,0.000333,7]
[391974838,1761047439157,-168.0,0.00033391,2]
[391974839,1761047439166,-1000.0,0.000334,12]
[391974840,1761047439177,-150.0,0.000335,30]
[391974841,1761047439187,-168.0,0.00033537,2]
[391974842,1761047439197,-2134.53,0.00033561,120]
[391974843,1761047439207,-5764.1529696,0.00033622,2]
[391974844,1761047439216,-12500.0,0.00033632,10]
[391974845,1761047439226,-1888.03633602,0.00033716,2]
[391974846,1761047439236,-211.818051,0.00033736,10]
[391974847,1761047439246,-152.919121,0.00033736,10]
[391974848,1761047439256,-767.0,0.00033779,30]
[391974849,1761047439266,-4205.0,0.00033797,2]
[391974850,1761047439276,-500.0,0.00033832,120]
[391974851,1761047439286,-500.0,0.00033832,120]
[391974852,1761047439296,-500.0,0.00033832,120]
[391974853,1761047439305,-500.0,0.00033832,120]
[391974854,1761047439315,-500.0,0.00033832,120]
[391974855,1761047439324,-500.0,0.00033832,120]
[391974856,1761047439334,-500.0,0.00033832,120]
[391974857,1761047439343,-500.0,0.00033832,120]
[391974858,1761047439352,-500.0,0.00033832,120]
[391974859,1761047439362,-500.0,0.00033832,120]
[391974860,1761047439371,-500.0,0.00033832,120]
[391974862,1761047439381,-500.0,0.00033832,120]
[391974864,1761047439390,-500.0,0.00033832,120]
[391974865,1761047439399,-499.80010004,0.00033832,120]
[391974867,1761047439408,-201.0,0.00033832,120]
[391974869,1761047439417,-625.0,0.00033832,120]
[391974871,1761047439426,-625.0,0.00033832,120]
[391974873,1761047439435,-625.0,0.00033832,120]
[391974875,1761047439444,-625.0,0.00033832,120]
[391974877,1761047439453,-625.0,0.00033832,120]
[391974879,1761047439462,-625.0,0.00033832,120]
[391974881,1761047439471,-625.0,0.00033832,120]
[391974883,1761047439480,-625.0,0.00033832,120]
[391974885,1761047439488,-625.0,0.00033832,120]
[391974887,1761047439497,-625.0,0.00033832,120]
[391974889,1761047439506,-625.0,0.00033832,120]
[391974891,1761047439515,-625.0,0.00033832,120]
[391974892,1761047439524,-625.0,0.00033832,120]
[391974895,1761047439534,-625.0,0.00033832,120]
[391974896,1761047439543,-625.0,0.00033832,120]
[391974897,1761047439551,-625.0,0.00033832,120]
[391974899,1761047439560,-625.0,0.00033832,120]
[391974901,1761047439570,-625.0,0.00033832,120]
[391974902,1761047439579,-625.0,0.00033832,120]
[391974903,1761047439588,-625.0,0.00033832,120]
[391974904,1761047439597,-625.0,0.00033832,120]
[391974905,1761047439606,-625.0,0.00033832,120]
[391974906,1761047439616,-625.0,0.00033832,120]
[391974907,1761047439625,-625.00000003,0.00033832,120]
[391974908,1761047439634,-300.0,0.00033832,2]
[391974909,1761047439644,-315.59160425,0.00033832,2]
[391974910,1761047439653,-833.29,0.00033832,120]
[391974911,1761047439662,-833.29,0.00033832,120]
[391974912,1761047439671,-833.29,0.00033832,120]
[391974913,1761047439680,-833.29,0.00033832,120]
[391974914,1761047439689,-833.29,0.00033832,120]
[391974915,1761047439698,-833.29,0.00033832,120]
[391974916,1761047439707,-833.29,0.00033832,120]
[391974917,1761047439716,-833.29,0.00033832,120]
[391974918,1761047439727,-833.29,0.00033832,120]
[391974919,1761047439736,-833.29,0.00033832,120]
[391974920,1761047439747,-833.29,0.00033832,120]
[391974921,1761047439756,-833.29,0.00033832,120]
[391974922,1761047439765,-833.29,0.00033832,120]
[391974923,1761047439774,-833.29,0.00033832,120]
[391974924,1761047439784,-833.29,0.00033832,120]
[391974925,1761047439794,-833.29,0.00033832,120]
[391974926,1761047439803,-833.29,0.00033832,120]
[391974927,1761047439812,-833.29,0.00033832,120]
[391974928,1761047439821,-833.29,0.00033832,120]
[391974929,1761047439830,-833.29,0.00033832,120]
[391974930,1761047439840,-500.0,0.00033832,120]
[391974931,1761047439849,-833.29,0.00033832,120]
[391974932,1761047439861,-500.0,0.00033832,120]
[391974933,1761047439870,-833.29,0.00033832,120]
[391974934,1761047439879,-500.0,0.00033832,120]
[391974935,1761047439888,-833.29,0.00033832,120]
[391974936,1761047439897,-500.0,0.00033832,120]
[391974937,1761047439906,-833.33,0.00033832,120]
[391974938,1761047439915,-500.0,0.00033832,120]
[391974939,1761047439924,-500.0,0.00033832,120]
[391974942,1761047439934,-500.0,0.00033832,120]
[391974943,1761047439943,-500.0,0.00033832,120]
[391974944,1761047439952,-500.0,0.00033832,120]
[391974946,1761047439961,-500.0,0.00033832,120]
[391974948,1761047439969,-500.0,0.00033832,120]
[391974950,1761047439978,-500.0,0.00033832,120]
[391974952,1761047439987,-500.0,0.00033832,120]
[391974954,1761047439995,-500.0,0.00033832,120]
[391974956,1761047440004,-500.0,0.00033832,120]
[391974957,1761047440013,-500.0,0.00033832,120]
[391974959,1761047440021,-500.0,0.00033832,120]
[391974961,1761047440031,-500.0,0.00033832,120]
[391974963,1761047440040,-500.0,0.00033832,120]
[391974965,1761047440051,-500.0,0.00033832,120]
[391974967,1761047440060,-278.07821197,0.00033832,120]
[391974969,1761047440069,-625.66768745,0.00033832,60]
[391974971,1761047440079,-150.0,0.00033832,2]
[391974972,1761047440088,-899.69928088,0.00033832,120]
[391974973,1761047440097,-500.0,0.00033832,120]
[391974974,1761047440106,-500.0,0.00033832,120]
[391974975,1761047440115,-500.0,0.00033832,120]
[391974976,1761047440124,-500.0,0.00033832,120]
[391974977,1761047440133,-500.0,0.00033832,120]
[391974978,1761047440142,-500.0,0.00033832,120]
[391974979,1761047440151,-500.0,0.00033832,120]
[391974980,1761047440160,-421.931749,0.00033832,120]
[391974981,1761047440169,-53893.52246584,0.00033832,120]
[391974982,1761047440178,-1000.0,0.00033832,30]
[391974983,1761047440187,-1000.0,0.00033832,30]
[391974984,1761047440195,-1008.59789,0.00033832,30]
[391974985,1761047440205,-2019.72,0.00033832,120]
[391974986,1761047440213,-2019.72,0.00033832,120]
[391974987,1761047440222,-2019.72,0.00033832,120]
[391974988,1761047440231,-2019.72,0.00033832,120]
[391974989,1761047440240,-2019.72,0.00033832,120]
[391974990,1761047440248,-2019.72,0.00033832,120]
[391974991,1761047440258,-2019.72,0.00033832,120]
[391974992,1761047440267,-2019.72,0.00033832,120]
[391974993,1761047440276,-2019.72,0.00033832,120]
[391974994,1761047440285,-2019.72,0.00033832,120]
[391974995,1761047440295,-2019.72,0.00033832,120]
[391974996,1761047440303,-2019.72,0.00033832,120]
[391974997,1761047440313,-2019.72,0.00033832,120]
[391974998,1761047440323,-2019.72,0.00033832,120]
[391974999,1761047440332,-2019.72,0.00033832,120]
[391975000,1761047440342,-2019.72,0.00033832,120]
[391975001,1761047440350,-2019.72,0.00033832,120]
[391975002,1761047440359,-2019.72,0.00033832,120]
[391975003,1761047440368,-2019.72,0.00033832,120]
[391975004,1761047440379,-2019.72,0.00033832,120]
[391975005,1761047440390,-2019.72,0.00033832,120]
[391975006,1761047440399,-2019.72,0.00033832,120]
[391975007,1761047440408,-2019.72,0.00033832,120]
[391975008,1761047440418,-2019.9077037,0.00033832,120]
[391975009,1761047440427,-323.00138825,0.00033832,120]
[391975010,1761047440437,-500.0,0.00033832,2]
[391975011,1761047440447,-500.0,0.00033832,2]